lending/lending_fUSD_20250122
["ID","MTS","AMOUNT","RATE_DAILY","PERIOD"]
[350026550,1737576658097,-500.0,0.00021859,2]
[350026551,1737576658106,-396.28547616,0.00021859,2]
[350026552,1737576658117,-103.71452384,0.00021859,2]
[350026553,1737576658127,-500.0,0.00021859,2]
[350026554,1737576658141,-322.50070724,0.00021859,2]
[350026555,1737576658150,-211.2946142,0.00021859,2]
[350026556,1737576658159,-256.74015472,0.00021859,2]
[350026557,1737576658171,-243.25984528,0.00021859,2]
[350026558,1737576658180,-500.0,0.00021859,2]
[350026559,1737576658189,-163.58824578,0.00021859,2]
[350026560,1737576658199,-500.0,0.00021859,2]
[350026561,1737576658208,-340.95190894,0.00021859,2]
[350026562,1737576658220,-159.04809106,0.00021859,2]
[350026563,1737576658229,-500.0,0.00021859,2]
[350026564,1737576658238,-500.0,0.00021859,2]
[350026565,1737576658247,-500.0,0.00021859,2]
[350026566,1737576658257,-138.09671186,0.00021859,2]
[350026567,1737576658267,-445.39402141,0.00021859,2]
[350026568,1737576658276,-500.0,0.00021859,2]
[350026569,1737576658285,-539.69223618,0.00021859,2]
[350026570,1737576658294,-41.34982023,0.00021859,2]
[350026571,1737576658306,-458.65017977,0.00021859,2]
[350026572,1737576658315,-500.0,0.00021859,2]
[350026573,1737576658325,-505.60848681,0.00021859,2]
[350026574,1737576658335,-500.0,0.00021859,2]
[350026575,1737576658344,-500.0,0.00021859,2]
[350026576,1737576658353,-500.0,0.00021859,2]
[350026577,1737576658362,-500.0,0.00021859,2]
[350026578,1737576658371,-500.0,0.00021859,2]
[350026579,1737576658384,-180.60339811,0.00021859,2]
[350026580,1737576658396,-319.39660189,0.00021859,2]
[350026581,1737576658406,-500.0,0.00021859,2]
[350026582,1737576658415,-312.5,0.00021859,2]
[350026583,1737576658424,-500.0,0.00021859,2]
[350026584,1737576658434,-500.0,0.00021859,2]
[350026585,1737576658443,-159.95439811,0.00021859,2]
[350026586,1737576658455,-340.04560189,0.00021859,2]
[350026587,1737576658465,-500.0,0.00021859,2]
[350026588,1737576658475,-500.0,0.00021859,2]
[350026589,1737576658484,-500.0,0.00021859,2]
[350026590,1737576658494,-500.0,0.00021859,2]
[350026591,1737576658503,-500.0,0.00021859,2]
[350026592,1737576658512,-500.0,0.00021859,2]
[350026593,1737576658522,-500.0,0.00021859,2]
[350026594,1737576658531,-500.0,0.00021859,2]
[350026595,1737576658540,-500.0,0.00021859,2]
[350026596,1737576658550,-500.0,0.00021859,2]
[350026597,1737576658559,-416.38545026,0.00021859,2]
[350026598,1737576658567,-563.53,0.00021859,2]
[350026599,1737576658577,-233.84639441,0.00021859,2]
[350026600,1737576658586,-533.18573234,0.00021859,2]
[350026601,1737576658595,-500.0,0.00021859,2]
[350026602,1737576658604,-500.0,0.00021859,2]
[350026603,1737576658614,-500.0,0.00021859,2]
[350026604,1737576658624,-500.0,0.00021859,2]
[350026605,1737576658637,-500.0,0.00021859,2]
[350026606,1737576658646,-500.0,0.00021859,2]
[350026607,1737576658655,-500.0,0.00021859,2]
[350026608,1737576658665,-500.0,0.00021859,2]
[350026609,1737576658674,-500.0,0.00021859,2]
[350026610,1737576658683,-38.40742588,0.00021859,2]
[350026611,1737576658694,-282.829833,0.00021859,2]
[350026612,1737576658706,-178.76274112,0.00021859,2]
[350026613,1737576658715,-77.32949891,0.00021859,2]
[350026614,1737576658728,-422.67050109,0.00021859,2]
[350026615,1737576658737,-500.0,0.00021859,2]
[350026616,1737576658749,-500.0,0.00021859,2]
[350026617,1737576658760,-500.0,0.00021859,2]
[350026618,1737576658769,-500.0,0.00021859,2]
[350026619,1737576658779,-500.0,0.0002186,2]
[350026620,1737576658787,-500.0,0.0002186,2]
[350026621,1737576658797,-500.0,0.0002186,2]
[350026622,1737576658807,-500.0,0.0002186,2]
[350026623,1737576658816,-500.0,0.0002186,2]
[350026624,1737576658825,-154.66334647,0.0002186,2]
[350026625,1737576658834,-615.32,0.0002186,2]
[350026626,1737576658843,-500.0,0.0002186,2]
[350026627,1737576658852,-500.0,0.0002186,2]
[350026628,1737576658861,-500.0,0.0002186,2]
[350026629,1737576658871,-500.0,0.0002186,2]
[350026630,1737576658882,-500.0,0.0002186,2]
[350026631,1737576658891,-500.0,0.0002186,2]
[350026632,1737576658901,-500.0,0.0002186,2]
[350026633,1737576658910,-500.0,0.0002186,2]
[350026634,1737576658919,-263.2,0.0002186,2]
[350026635,1737576658928,-500.0,0.0002186,2]
[350026636,1737576658938,-500.0,0.0002186,2]
[350026637,1737576658946,-500.0,0.0002186,2]
[350026638,1737576658955,-500.0,0.0002186,2]
[350026639,1737576658964,-151.0,0.0002186,2]
[350026640,1737576658973,-500.0,0.0002186,2]
[350026641,1737576658983,-500.0,0.0002186,2]
[350026642,1737576658992,-500.0,0.0002186,2]
[350026643,1737576659001,-298.64,0.0002186,2]
[350026644,1737576659011,-500.0,0.0002186,2]
[350026645,1737576659019,-500.0,0.0002186,2]
[350026646,1737576659029,-500.0,0.0002186,2]
[350026647,1737576659039,-500.0,0.0002186,2]
[350026648,1737576659047,-500.0,0.0002186,2]
[350026649,1737576659059,-500.0,0.0002186,2]
[350026650,1737576659069,-500.0,0.0002186,2]
[350026651,1737576659205,-500.0,0.0002186,2]
[350026652,1737576659215,-500.0,0.0002186,2]
[350026653,1737576659225,-500.0,0.0002186,2]
[350026654,1737576659234,-500.0,0.0002186,2]
[350026655,1737576659243,-500.0,0.0002186,2]
[350026656,1737576659253,-500.0,0.0002186,2]
[350026657,1737576659263,-500.0,0.0002186,2]
[350026658,1737576659274,-500.0,0.0002186,2]
[350026659,1737576659284,-500.0,0.0002186,2]
[350026660,1737576659294,-500.0,0.0002186,2]
[350026661,1737576659304,-500.0,0.0002186,2]
[350026662,1737576659315,-500.0,0.0002186,2]
[350026663,1737576659325,-500.0,0.0002186,2]
[350026664,1737576659337,-500.0,0.0002186,2]
[350026665,1737576659348,-500.0,0.0002186,2]
[350026666,1737576659359,-500.0,0.0002186,2]
[350026667,1737576659369,-500.0,0.0002186,2]
[350026668,1737576659384,-595.46,0.0002186,2]
[350026669,1737576659395,-500.0,0.0002186,2]
[350026670,1737576659405,-500.0,0.0002186,2]
[350026671,1737576659417,-500.0,0.0002186,2]
[350026672,1737576659427,-500.0,0.0002186,2]
[350026673,1737576659437,-500.0,0.0002186,2]
[350026674,1737576659447,-500.0,0.0002186,2]
[350026675,1737576659458,-500.0,0.0002186,2]
[350026676,1737576659467,-500.0,0.0002186,2]
[350026677,1737576659477,-159.31424,0.0002186,2]
[350026678,1737576659486,-500.0,0.0002186,2]
[350026679,1737576659496,-612.56,0.0002186,2]
[350026680,1737576659505,-500.0,0.0002186,2]
[350026681,1737576659515,-556.09692067,0.0002186,2]
[350026682,1737576659524,-500.0,0.0002186,2]
[350026683,1737576659534,-529.26,0.0002186,2]
[350026684,1737576659543,-500.0,0.0002186,2]
[350026685,1737576659554,-151.0,0.0002186,2]
[350026686,1737576659563,-500.0,0.0002186,2]
[350026687,1737576659572,-897.11,0.0002186,2]
[350026688,1737576659581,-500.0,0.0002186,2]
[350026689,1737576659590,-1313.42,0.0002186,2]
[350026690,1737576659600,-500.0,0.0002186,2]
[350026691,1737576659609,-500.0,0.0002186,2]
[350026692,1737576659622,-500.0,0.0002186,2]
[350026693,1737576659636,-759.66,0.0002186,2]
[350026694,1737576659646,-1445.98,0.0002186,2]
[350026695,1737576659657,-500.0,0.0002186,2]
[350026696,1737576659667,-500.0,0.0002186,2]
[350026697,1737576659677,-1717.23,0.0002186,2]
[350026698,1737576659687,-500.0,0.0002186,2]
[350026699,1737576659699,-3247.23,0.0002186,2]
[350026700,1737576659709,-1125.5,0.0002186,2]
[350026701,1737576659718,-500.0,0.0002186,2]
[350026702,1737576659727,-500.0,0.0002186,2]
[350026703,1737576659736,-900.2,0.0002186,2]
[350026704,1737576659746,-3230.17,0.0002186,2]
[350026705,1737576659755,-2080.92,0.0002186,2]
[350026706,1737576659764,-500.0,0.0002186,2]
[350026707,1737576659774,-840.9,0.0002186,2]
[350026708,1737576659783,-830.96,0.0002186,2]
[350026709,1737576659792,-500.0,0.0002186,2]
[350026710,1737576659801,-1172.37,0.0002186,2]
[350026711,1737576659810,-1444.02,0.0002186,2]
[350026712,1737576659820,-500.0,0.0002186,2]
[350026713,1737576659829,-500.0,0.0002186,2]
[350026714,1737576659838,-500.0,0.0002186,2]
[350026715,1737576659847,-500.0,0.0002186,2]
[350026716,1737576659856,-877.47,0.0002186,2]
[350026717,1737576659866,-666.24,0.0002186,2]
[350026718,1737576659875,-500.0,0.0002186,2]
[350026719,1737576659886,-2568.12,0.0002186,2]
[350026720,1737576659895,-659.95,0.0002186,2]
[350026721,1737576659904,-500.0,0.0002186,2]
[350026722,1737576659914,-878.44,0.0002186,2]
[350026723,1737576659923,-500.0,0.0002186,2]
[350026724,1737576659932,-1164.472675,0.0002186,2]
[350026725,1737576659941,-500.0,0.0002186,2]
[350026726,1737576659950,-500.0,0.0002186,2]
[350026727,1737576659959,-1164.472675,0.0002186,2]
[350026728,1737576659968,-1079.58,0.0002186,2]
[350026729,1737576659977,-1903.17,0.0002186,2]
[350026730,1737576659986,-500.0,0.0002186,2]
[350026731,1737576659995,-500.0,0.0002186,2]
[350026732,1737576660005,-500.0,0.0002186,2]
[350026733,1737576660015,-676.15,0.0002186,2]
[350026734,1737576660024,-500.0,0.0002186,2]
[350026735,1737576660033,-1000.0,0.0002186,2]
[350026736,1737576660043,-500.0,0.0002186,2]
[350026737,1737576660053,-875.19,0.0002186,2]
[350026738,1737576660063,-957.59,0.0002186,2]
[350026739,1737576660073,-500.0,0.0002186,2]
[350026740,1737576660083,-1075.96,0.0002186,2]
[350026741,1737576660097,-500.0,0.0002186,2]
[350026742,1737576660106,-500.0,0.0002186,2]
[350026743,1737576660115,-500.0,0.0002186,2]
[350026744,1737576660124,-500.0,0.0002186,2]
[350026745,1737576660137,-1538.31,0.0002186,2]
[350026746,1737576660147,-500.0,0.0002186,2]
[350026747,1737576660156,-500.0,0.0002186,2]
[350026748,1737576660165,-500.0,0.0002186,2]
[350026749,1737576660175,-876.92,0.0002186,2]
[350026750,1737576660184,-500.0,0.0002186,2]
[350026751,1737576660194,-193.93998,0.0002186,2]
[350026752,1737576660203,-193.93998,0.0002186,2]
[350026753,1737576660212,-1671.37,0.0002186,2]
[350026754,1737576660222,-500.0,0.0002186,2]
[350026755,1737576660231,-500.0,0.0002186,2]
[350026756,1737576660241,-535.83,0.0002186,2]
[350026757,1737576660253,-504.75877877,0.0002186,2]
[350026758,1737576660263,-500.0,0.0002186,2]
[350026759,1737576660272,-500.0,0.0002186,2]
[350026760,1737576660281,-500.0,0.0002186,2]
[350026761,1737576660291,-500.0,0.0002186,2]
[350026762,1737576660300,-500.0,0.0002186,2]
[350026763,1737576660309,-574.45,0.0002186,2]
[350026764,1737576660319,-500.0,0.0002186,2]
[350026765,1737576660328,-500.0,0.0002186,2]
[350026766,1737576660338,-684.62,0.0002186,2]
[350026767,1737576660348,-500.0,0.0002186,2]
[350026768,1737576660357,-500.0,0.0002186,2]
[350026769,1737576660366,-500.0,0.0002186,2]
[350026770,1737576660376,-687.33,0.0002186,2]
[350026771,1737576660388,-500.0,0.0002186,2]
[350026772,1737576660398,-613.28,0.0002186,2]
[350026773,1737576660408,-500.0,0.00021861,2]
[350026774,1737576660418,-4679.0,0.00021863,2]
[350026775,1737576660428,-178.0761006,0.00021877,2]
[350026776,1737576660438,-203.2409359,0.00021885,2]
[350026777,1737576660448,-213.5593705,0.00021885,2]
[350026778,1737576660457,-2000.0,0.0002189,2]
[350026779,1737576660467,-1908.0074,0.0002189,2]
[350026780,1737576660476,-2001.0447,0.0002189,2]
[350026781,1737576660485,-2000.0,0.0002189,2]
[350026782,1737576660495,-2000.8308,0.0002189,2]
[350026783,1737576660504,-13176.025302,0.000219,5]
[350026784,1737576660514,-2000.0,0.000219,2]
[350026785,1737576660523,-2000.0,0.000219,2]
[350026786,1737576660533,-2000.0,0.000219,2]
[350026787,1737576660543,-2000.0,0.000219,2]
[350026788,1737576660552,-2000.0,0.000219,2]
[350026789,1737576660561,-2000.0,0.000219,2]
[350026790,1737576660571,-2000.0,0.000219,2]
[350026791,1737576660581,-2000.0,0.000219,2]
[350026792,1737576660590,-602.65876381,0.000219,2]
[350026793,1737576660599,-9984.18168382,0.000219,2]
[350026794,1737576660610,-177.68131708,0.000219,2]
[350026795,1737576660623,-150.0,0.000219,4]
[350026796,1737576660635,-858.52909479,0.000219,2]
[350026797,1737576660644,-151.0,0.000219,2]
[350026798,1737576660653,-11026.02113118,0.000219,2]
[350026799,1737576660664,-3567.7767956,0.000219,2]
[350026800,1737576660673,-151.0,0.000219,2]
[350026801,1737576660682,-166.39721903,0.000219,2]
[350026802,1737576660691,-321.7896,0.000219,2]
[350026803,1737576660701,-559.047,0.000219,2]
[350026804,1737576660713,-41242.1293081,0.000219,3]
[350026805,1737576660722,-500.0,0.000219,4]
[350026806,1737576660731,-1164.472675,0.000219,2]
[350026807,1737576660741,-1164.472672,0.000219,2]
[350026808,1737576660752,-168.12076724,0.000219,2]
[350026809,1737576660762,-168.12076724,0.000219,2]
[350026810,1737576660772,-168.12076724,0.000219,2]
[350026811,1737576660782,-168.12076724,0.000219,2]
[350026812,1737576660791,-308.33647276,0.000219,2]
[350026813,1737576660800,-193.93998,0.000219,2]
[350026814,1737576660809,-193.93997,0.000219,2]
[350026815,1737576660818,-300.02758541,0.000219,4]
[350026816,1737576660828,-2360.62732324,0.000219,2]
[350026817,1737576660837,-15355.24952006,0.000219,2]
[350026818,1737576660848,-10851.42776587,0.000219,2]
[350026819,1737576660858,-1000.0,0.000219,2]
[350026820,1737576660867,-500.0,0.00021917,2]
[350026821,1737576660877,-500.0,0.00021917,2]
[350026822,1737576660889,-500.0,0.00021917,2]
[350026823,1737576660898,-500.0,0.00021917,2]
[350026824,1737576660908,-500.0,0.00021917,2]
[350026825,1737576660917,-500.0,0.00021917,2]
[350026826,1737576660929,-150.0,0.00021918,2]
[350026827,1737576660938,-150.0,0.00021918,3]
[350026828,1737576660948,-816.16369153,0.00021921,2]
[350026829,1737576660957,-150.0,0.00021927,4]
[350026830,1737576660966,-730.19265721,0.00021927,4]
[350026831,1737576660976,-10334.0,0.0002193,2]
[350026832,1737576660985,-150.0,0.00021945,3]
[350026833,1737576660994,-200.0,0.00021955,4]
[350026834,1737576661003,-508.03,0.00021959,7]
[350026835,1737576661013,-508.03,0.00021959,7]
[350026836,1737576661022,-503.07,0.00021969,2]
[350026837,1737576661031,-500.0,0.00021969,2]
[350026838,1737576661042,-500.0,0.00021969,2]
[350026839,1737576661051,-500.0,0.00021969,2]
[350026840,1737576661060,-175.6458983,0.00021973,4]
[350026841,1737576661069,-150.0,0.00021973,4]
[350026842,1737576661079,-172.94046575,0.00021973,4]
[350026843,1737576661088,-150.0,0.00021973,4]
[350026844,1737576661098,-221.73548859,0.00021973,4]
[350026845,1737576661112,-150.0,0.00021973,4]
[350026846,1737576661121,-279.0577435,0.00021973,4]
[350026847,1737576661132,-150.0,0.00021973,4]
[350026848,1737576661143,-150.0,0.00021973,2]
[350026849,1737576661152,-150.0,0.00021973,3]
[350026850,1737576661161,-175.6458983,0.00021977,4]
[350026851,1737576661171,-150.0,0.0002198,4]
[350026852,1737576661180,-66309.31167174,0.0002198,2]
[350026853,1737576661189,-175.6458983,0.00021981,4]
[350026854,1737576661198,-175.6458983,0.00021985,4]
[350026855,1737576661207,-150.0,0.00021985,4]
[350026856,1737576661216,-150.0,0.00021987,4]
[350026857,1737576661226,-175.6458983,0.00021989,4]
[350026858,1737576661235,-9819.39745935,0.0002199,3]
[350026859,1737576661245,-399.77336984,0.0002199,2]
[350026860,1737576661254,-399.77336984,0.0002199,2]
[350026861,1737576661265,-175.6458983,0.00021993,4]
[350026862,1737576661274,-150.0,0.00021994,4]
[350026863,1737576661283,-175.6458983,0.00021998,4]
[350026864,1737576661292,-150.0,0.00021998,4]
[350026865,1737576661302,-667.72,0.00021999,2]
[350026866,1737576661312,-151.0,0.00021999,7]
[350026867,1737576661321,-3828.70747607,0.00022,2]
[350026868,1737576661330,-91489.30123808,0.00022,2]
[350026869,1737576661340,-1832.2252169,0.00022,23]
[350026870,1737576661349,-223306.85272732,0.00022,2]
[350026871,1737576661364,-415.6557622,0.00022,2]
[350026872,1737576661388,-500.0,0.00021311,2]
[350026873,1737576661398,-500.0,0.00021584,2]
[350026874,1737576661407,-56.34317,0.00022,2]
[350026875,1737576661418,-761.25738331,0.00022,2]
[350026876,1737576661429,-14227.571461,0.00022,2]
[350026877,1737576661439,-1581.57987107,0.00022,2]
[350026878,1737576661451,-21947.859396,0.00022,2]
[350026879,1737576661465,-26665.8147536,0.00022,2]
[350026880,1737576661476,-1325.2359382,0.00022,2]
[350026881,1737576661487,-1610.729815,0.00022,2]
[350026882,1737576661498,-2070.0,0.00022,2]
[350026883,1737576661509,-5246.97265933,0.00022,2]
[350026886,1737577300995,-266.0,0.00012329,2]
[350026887,1737577363738,376.88,0.00010137,2]
[350026889,1737577507878,1659623.12,0.00012,2]
[350026890,1737577507910,230000.0,0.00012,2]
[350026891,1737577507938,134793.68291292,0.00012,2]
[350026892,1737577519468,6579.70236244,9e-05,2]
[350026893,1737577529144,5570.45453968,0.00011,2]
[350026894,1737577536064,32724.83228394,8e-05,2]
[350026901,1737577553942,24899.26426147,6.94e-05,2]
[350026902,1737577561430,12737.78047034,0.0001,2]
[350026903,1737577565957,9013.00248955,8e-05,2]
[350026906,1737577676393,672.12234361,0.0001,2]
[350026907,1737577680079,3348821.59373006,0.0001,2]
[350026908,1737577686280,1184.8936743,9.5e-05,2]
[350026911,1737577723105,16746.40688289,8e-05,2]
[350026922,1737577832402,-0.62,0.00012329,2]
[350026923,1737577832412,-376.88,0.00016813,2]
[350026924,1737577832421,-1181.47,0.00017608,2]
[350026925,1737577832431,-2076.0,0.000181,2]
[350026926,1737577832441,-500.0,0.00018548,2]
[350026927,1737577832451,-292.43866411,0.00018693,2]
[350026928,1737577832460,-300.0,0.00018899,2]
[350026929,1737577832471,-7386.0024536,0.000189,2]
[350026930,1737577832481,-11925.25653556,0.00019,2]
[350026931,1737577832493,-6805.72884045,0.00019,2]
[350026932,1737577832505,-362.07838267,0.00019,2]
[350026933,1737577832524,-977.18996205,0.00019,2]
[350026934,1737577832535,-2073.0,0.00019,2]
[350026935,1737577832553,-168.92851758,0.00019,2]
[350026936,1737577832563,-23294.13,0.00019314,2]
[350026937,1737577832572,-250.0,0.00019514,2]
[350026938,1737577832582,-250.0,0.00019656,2]
[350026939,1737577832593,-13740.6078745,0.00019678,2]
[350026940,1737577832603,-932.12,0.0001971,2]
[350026941,1737577832613,-815.00718612,0.00019711,2]
[350026942,1737577832623,-1015.05,0.00019846,2]
[350026943,1737577832632,-839.43,0.00019846,2]
[350026944,1737577832642,-1181.47,0.00019872,2]
[350026945,1737577832652,-174.02,0.00019877,2]
[350026946,1737577832662,-3070.86240869,0.000199,3]
[350026947,1737577832671,-206.64884081,0.000199,2]
[350026948,1737577832680,-6009.7,0.00019912,2]
[350026949,1737577832690,-151.0,0.00019965,2]
[350026950,1737577832699,-172.62,0.00019994,2]
[350026951,1737577832709,-2110.0,0.0002,2]
[350026952,1737577832718,-23485.37369853,0.0002,4]
[350026953,1737577832728,-250.0,0.00020181,2]
[350026954,1737577832738,-249.36,0.00020286,2]
[350026955,1737577832747,-1000.0,0.00020325,2]
[350026956,1737577832757,-150.0,0.00020329,2]
[350026957,1737577832766,-2228.87275398,0.0002036,2]
[350026958,1737577832776,-257.7867933,0.00020361,2]
[350026959,1737577832785,-1574.729,0.00020494,2]
[350026960,1737577832795,-2110.0,0.000205,2]
[350026961,1737577832805,-20438.62,0.00020548,2]
[350026962,1737577832814,-500.0,0.0002074,2]
[350026963,1737577832824,-170.75,0.00020759,2]
[350026964,1737577832834,-1943.285352,0.00020791,2]
[350026965,1737577832846,-1429.79356392,0.00020793,2]
[350026966,1737577832855,-8993.45768077,0.000208,2]
[350026967,1737577832865,-418.99891116,0.00020813,2]
[350026968,1737577832876,-1429.79356392,0.00020817,2]
[350026969,1737577832886,-418.99891116,0.00020833,2]
[350026970,1737577832895,-1943.285352,0.00020836,2]
[350026971,1737577832905,-2970.07567216,0.0002084,2]
[350026972,1737577832915,-1943.285352,0.00020855,2]
[350026973,1737577832924,-418.99891116,0.00020874,2]
[350026974,1737577832933,-418.99891116,0.00020881,2]
[350026975,1737577832942,-160.813,0.000209,2]
[350026976,1737577832952,-54198.0042868,0.000209,2]
[350026977,1737577832962,-206.64884081,0.000209,2]
[350026978,1737577832975,-1429.79356392,0.00020904,2]
[350026979,1737577832985,-8993.45768069,0.00020922,2]
[350026980,1737577832995,-1429.79356392,0.00020923,2]
[350026982,1737577833004,-1943.285352,0.00020927,2]
[350026984,1737577833015,-418.99891116,0.00020931,2]
[350026986,1737577833025,-1943.285352,0.00020938,2]
[350026988,1737577833034,-1429.79356392,0.00020944,2]
[350026990,1737577833044,-2110.0,0.00021,2]
[350026992,1737577833055,-8783.31373682,0.00021,10]
[350026994,1737577833064,-773.25,0.00021041,2]
[350026996,1737577833073,-530.83,0.00021041,2]
[350026998,1737577833082,-438.56,0.00021041,2]
[350027000,1737577833093,-773.25,0.00021041,2]
[350027002,1737577833102,-438.56,0.00021041,2]
[350027004,1737577833112,-773.25,0.00021041,2]
[350027006,1737577833122,-438.56,0.00021041,2]
[350027008,1737577833131,-150.52,0.00021041,2]
[350027009,1737577833141,-8993.45768069,0.00021044,2]
[350027011,1737577833150,-1944.0,0.00021072,2]
[350027013,1737577833160,-187.5,0.00021117,2]
[350027015,1737577833169,-3078.96850263,0.00021167,2]
[350027019,1737577833181,-1000.09,0.00021167,2]
[350027022,1737577833196,-4380.46723962,0.00021167,2]
[350027026,1737577833208,-533.93193844,0.00021167,2]
[350027028,1737577833217,-150.0,0.00021178,2]
[350027030,1737577833226,-150.0,0.00021178,2]
[350027032,1737577833235,-301.37,0.00021178,2]
[350027034,1737577833244,-150.68,0.00021178,2]
[350027036,1737577833253,-437.79,0.00021178,2]
[350027038,1737577833263,-437.79,0.00021178,2]
[350027040,1737577833272,-150.0,0.00021178,2]
[350027042,1737577833282,-150.0,0.00021178,2]
[350027044,1737577833292,-147.93398595,0.00021178,2]
[350027047,1737577833303,-2.06601405,0.00021178,2]
[350027049,1737577833313,-437.79,0.00021178,2]
[350027051,1737577833322,-150.0,0.00021178,2]
[350027053,1737577833331,-437.79,0.00021178,2]
[350027054,1737577833344,-150.0,0.00021178,2]
[350027057,1737577833355,-150.0,0.00021178,2]
[350027059,1737577833365,-436.99,0.00021178,2]
[350027061,1737577833375,-150.0,0.00021178,2]
[350027063,1737577833384,-150.0,0.00021178,2]
[350027064,1737577833394,-715.8681,0.00021187,2]
[350027066,1737577833403,-1789.9807,0.00021209,2]
[350027069,1737577833414,-367.0479,0.0002121,2]
[350027071,1737577833423,-362.46728595,0.00021211,2]
[350027073,1737577833440,-3064.3004894,0.00021211,2]
[350027075,1737577833450,-5000.0,0.00021212,2]
[350027077,1737577833459,-500.0,0.00021287,2]
[350027079,1737577833469,-500.0,0.00021287,2]
[350027081,1737577833479,-500.0,0.00021287,2]
[350027083,1737577833489,-500.0,0.00021287,2]
[350027086,1737577833498,-500.0,0.00021287,2]
[350027088,1737577833508,-500.0,0.00021287,2]
[350027089,1737577833517,-3426.76777531,0.00021288,2]
[350027092,1737577833528,-8993.45768069,0.00021289,2]
[350027094,1737577833537,-249.36,0.00021301,2]
[350027095,1737577833546,-500.0,0.00021308,2]
[350027097,1737577833555,-500.0,0.00021308,2]
[350027099,1737577833565,-500.0,0.00021309,2]
[350027101,1737577833574,-500.0,0.00021309,2]
[350027104,1737577833583,-500.0,0.00021309,2]
[350027105,1737577833595,-500.0,0.00021309,2]
[350027107,1737577833604,-500.0,0.00021309,2]
[350027109,1737577833614,-500.0,0.00021309,2]
[350027111,1737577833624,-500.0,0.00021309,2]
[350027113,1737577833634,-500.0,0.00021309,2]
[350027115,1737577833643,-500.0,0.00021309,2]
[350027117,1737577833652,-500.0,0.00021309,2]
[350027119,1737577833661,-500.0,0.00021309,2]
[350027121,1737577833671,-500.0,0.00021309,2]
[350027123,1737577833681,-500.0,0.00021309,2]
[350027125,1737577833691,-500.0,0.00021309,2]
[350027127,1737577833701,-500.0,0.00021309,2]
[350027129,1737577833711,-500.0,0.00021309,2]
[350027131,1737577833721,-500.0,0.00021309,2]
[350027133,1737577833730,-500.0,0.00021309,2]
[350027135,1737577833740,-500.0,0.00021309,2]
[350027137,1737577833749,-500.0,0.00021309,2]
[350027139,1737577833758,-500.0,0.00021309,2]
[350027141,1737577833768,-500.0,0.00021309,2]
[350027143,1737577833777,-500.0,0.00021309,2]
[350027145,1737577833787,-500.0,0.00021309,2]
[350027147,1737577833796,-500.0,0.00021309,2]
[350027149,1737577833805,-500.0,0.00021309,2]
[350027151,1737577833815,-500.0,0.00021309,2]
[350027153,1737577833823,-500.0,0.00021309,2]
[350027155,1737577833833,-500.0,0.00021309,2]
[350027157,1737577833845,-592.62756161,0.00021309,2]
[350027159,1737577833854,-500.0,0.00021309,2]
[350027161,1737577833863,-500.0,0.00021309,2]
[350027163,1737577833873,-500.0,0.00021309,2]
[350027165,1737577833882,-500.0,0.00021309,2]
[350027167,1737577833890,-500.0,0.00021309,2]
[350027169,1737577833900,-500.0,0.00021309,2]